[Event "Late-Titled-Tuesday-Blitz-March-12-2024"]
[Site "Chess.com"]
[Date "2024.03.12"]
[Round "1"]
[White "masnyszachistaaa"]
[Black "Durarbayli"]
[Result "1/2-1/2"]
[WhiteElo "2550"]
[BlackElo "2995"]
[TimeControl "180+1"]
[EndTime "14:09:40 PDT"]
[Termination "Game drawn by repetition"]

1. d4 {[%clk 0:03:00.9]} 1... Nf6 {[%clk 0:02:59.1]} 2. c4 {[%clk 0:03:01.1]}
2... e6 {[%clk 0:02:59.5]} 3. Nf3 {[%clk 0:03:01.1]} 3... b6 {[%clk 0:02:59.7]}
4. a3 {[%clk 0:02:57.5]} 4... Bb7 {[%clk 0:02:57.2]} 5. Nc3 {[%clk 0:02:57.6]}
5... d5 {[%clk 0:02:56.3]} 6. cxd5 {[%clk 0:02:58.5]} 6... Nxd5 {[%clk
0:02:56.6]} 7. Qc2 {[%clk 0:02:59.1]} 7... Be7 {[%clk 0:02:56.4]} 8. e4 {[%clk
0:02:59.3]} 8... Nxc3 {[%clk 0:02:56.6]} 9. bxc3 {[%clk 0:03:00.2]} 9... O-O
{[%clk 0:02:56.4]} 10. Bd3 {[%clk 0:03:00.5]} 10... c5 {[%clk 0:02:56.5]} 11.
O-O {[%clk 0:03:00.4]} 11... Qc7 {[%clk 0:02:56.5]} 12. Qe2 {[%clk 0:02:59.8]}
12... Rd8 {[%clk 0:02:55.8]} 13. Be3 {[%clk 0:02:59.7]} 13... Nc6 {[%clk
0:02:52.6]} 14. dxc5 {[%clk 0:02:41.8]} 14... Bxc5 {[%clk 0:02:43.9]} 15. Bxc5
{[%clk 0:02:41.6]} 15... bxc5 {[%clk 0:02:44.8]} 16. Ba6 {[%clk 0:02:36.4]}
16... Bxa6 {[%clk 0:02:24.4]} 17. Qxa6 {[%clk 0:02:37.3]} 17... Rab8 {[%clk
0:02:24.8]} 18. Qc4 {[%clk 0:02:23.2]} 18... Na5 {[%clk 0:02:24.4]} 19. Qa4
{[%clk 0:02:21.4]} 19... Rb3 {[%clk 0:02:03.7]} 20. Rfc1 {[%clk 0:02:02.9]}
20... Qb6 {[%clk 0:01:48.6]} 21. Ne5 {[%clk 0:01:49.4]} 21... h6 {[%clk
0:01:36.1]} 22. h3 {[%clk 0:01:41.2]} 22... a6 {[%clk 0:01:08.5]} 23. Nc4 {[%clk
0:01:33.7]} 23... Nxc4 {[%clk 0:01:07.3]} 24. Qxc4 {[%clk 0:01:34.6]} 24... Rb2
{[%clk 0:00:53.6]} 25. Rd1 {[%clk 0:01:31.4]} 25... Rdd2 {[%clk 0:00:53.9]} 26.
Rxd2 {[%clk 0:01:26.1]} 26... Rxd2 {[%clk 0:00:54.8]} 27. Qa4 {[%clk 0:01:17.1]}
27... g6 {[%clk 0:00:50.5]} 28. Rd1 {[%clk 0:01:11.5]} 28... Rxd1+ {[%clk
0:00:32.7]} 29. Qxd1 {[%clk 0:01:12.4]} 29... Qb2 {[%clk 0:00:32.5]} 30. Qd8+
{[%clk 0:01:02.5]} 30... Kg7 {[%clk 0:00:31]} 31. Qa5 {[%clk 0:01:03.4]} 31...
c4 {[%clk 0:00:19.4]} 32. Qe5+ {[%clk 0:00:48.7]} 32... Kg8 {[%clk 0:00:19.5]}
33. Qa5 {[%clk 0:00:34.5]} 33... Qc1+ {[%clk 0:00:11]} 34. Kh2 {[%clk
0:00:34.2]} 34... Qf4+ {[%clk 0:00:11.9]} 35. Kg1 {[%clk 0:00:34.3]} 35... Qxe4
{[%clk 0:00:12.5]} 36. Qb4 {[%clk 0:00:20]} 36... Qe1+ {[%clk 0:00:10.1]} 37.
Kh2 {[%clk 0:00:20.2]} 37... Qe5+ {[%clk 0:00:10.5]} 38. Kg1 {[%clk 0:00:20.3]}
38... Qd5 {[%clk 0:00:10.8]} 39. a4 {[%clk 0:00:17.7]} 39... a5 {[%clk
0:00:11.2]} 40. Qb8+ {[%clk 0:00:17.3]} 40... Kg7 {[%clk 0:00:11.7]} 41. Qg3
{[%clk 0:00:16.3]} 41... Qd1+ {[%clk 0:00:10.1]} 42. Kh2 {[%clk 0:00:16.5]}
42... Qxa4 {[%clk 0:00:11]} 43. Qe5+ {[%clk 0:00:16]} 43... Kg8 {[%clk
0:00:11.3]} 44. Qb8+ {[%clk 0:00:15.9]} 44... Kh7 {[%clk 0:00:11.9]} 45. Qc7
{[%clk 0:00:13.4]} 45... Kg7 {[%clk 0:00:12.4]} 46. Qe5+ {[%clk 0:00:13.1]}
46... Kf8 {[%clk 0:00:13.1]} 47. Qb8+ {[%clk 0:00:10.1]} 47... Ke7 {[%clk
0:00:13]} 48. Qc7+ {[%clk 0:00:10.2]} 48... Ke8 {[%clk 0:00:11.4]} 49. Qc8+
{[%clk 0:00:10]} 49... Ke7 {[%clk 0:00:12.1]} 50. Qc7+ {[%clk 0:00:10.9]} 50...
Qd7 {[%clk 0:00:12.1]} 51. Qxa5 {[%clk 0:00:10]} 51... Qd5 {[%clk 0:00:09.5]}
52. Qc7+ {[%clk 0:00:08.6]} 52... Kf6 {[%clk 0:00:09.8]} 53. Qf4+ {[%clk
0:00:07.1]} 53... Kg7 {[%clk 0:00:10.4]} 54. Qe3 {[%clk 0:00:06.3]} 54... g5
{[%clk 0:00:10.9]} 55. g3 {[%clk 0:00:06.1]} 55... Kf6 {[%clk 0:00:11.5]} 56.
Kg1 {[%clk 0:00:06]} 56... Kg7 {[%clk 0:00:11.5]} 57. Qe1 {[%clk 0:00:04.9]}
57... e5 {[%clk 0:00:11]} 58. Qe3 {[%clk 0:00:04.8]} 58... Kg6 {[%clk
0:00:10.9]} 59. g4 {[%clk 0:00:04.8]} 59... Kg7 {[%clk 0:00:09.9]} 60. Kh2
{[%clk 0:00:04.7]} 60... e4 {[%clk 0:00:08.2]} 61. Kg1 {[%clk 0:00:03.9]} 61...
Qd3 {[%clk 0:00:08.7]} 62. Qe1 {[%clk 0:00:03.1]} 62... Kf6 {[%clk 0:00:08.4]}
63. Kg2 {[%clk 0:00:02.6]} 63... Ke5 {[%clk 0:00:08.4]} 64. Kg1 {[%clk
0:00:02.6]} 64... Kf4 {[%clk 0:00:08.5]} 65. Kg2 {[%clk 0:00:02.3]} 65... Qf3+
{[%clk 0:00:08.6]} 66. Kh2 {[%clk 0:00:02.8]} 66... e3 {[%clk 0:00:07.2]} 67.
fxe3+ {[%clk 0:00:02.6]} 67... Qxe3 {[%clk 0:00:08.1]} 68. Qf1+ {[%clk
0:00:02.9]} 68... Ke5 {[%clk 0:00:06.9]} 69. Qxc4 {[%clk 0:00:03.1]} 69... Qf2+
{[%clk 0:00:04]} 70. Kh1 {[%clk 0:00:03.6]} 70... Qf3+ {[%clk 0:00:04.3]} 71.
Kh2 {[%clk 0:00:03.7]} 71... Qf2+ {[%clk 0:00:04.5]} 72. Kh1 {[%clk 0:00:04.2]}
72... Qg3 {[%clk 0:00:04]} 73. Qd4+ {[%clk 0:00:04.1]} 73... Ke6 {[%clk
0:00:04.6]} 74. Qe4+ {[%clk 0:00:03.3]} 74... Kf6 {[%clk 0:00:04.4]} 75. Qd4+
{[%clk 0:00:02.9]} 75... Kg6 {[%clk 0:00:04.7]} 76. Qe4+ {[%clk 0:00:03.4]}
76... Kg7 {[%clk 0:00:05.4]} 77. Qd4+ {[%clk 0:00:03.8]} 77... Kg8 {[%clk
0:00:06.1]} 78. Qd8+ {[%clk 0:00:03.8]} 78... Kh7 {[%clk 0:00:06.8]} 79. Qd7
{[%clk 0:00:02.1]} 79... Qxh3+ {[%clk 0:00:07.2]} 80. Kg1 {[%clk 0:00:02.7]}
80... Qg3+ {[%clk 0:00:07.9]} 81. Kh1 {[%clk 0:00:03.1]} 81... Qf3+ {[%clk
0:00:08.5]} 82. Kh2 {[%clk 0:00:03.2]} 82... Qf4+ {[%clk 0:00:08]} 83. Kh3
{[%clk 0:00:03]} 83... Qf3+ {[%clk 0:00:07.5]} 84. Kh2 {[%clk 0:00:03.3]} 84...
Qf2+ {[%clk 0:00:08.1]} 85. Kh3 {[%clk 0:00:03.3]} 85... Qf1+ {[%clk 0:00:08.1]}
86. Kh2 {[%clk 0:00:03.6]} 86... Qe2+ {[%clk 0:00:08.4]} 87. Kh3 {[%clk
0:00:03.2]} 87... Qe3+ {[%clk 0:00:07.3]} 88. Kg2 {[%clk 0:00:03.5]} 88... Kg7
{[%clk 0:00:08.1]} 89. Qc7 {[%clk 0:00:01.9]} 89... Qe2+ {[%clk 0:00:07.3]} 90.
Kg3 {[%clk 0:00:02.1]} 90... Qd3+ {[%clk 0:00:07.3]} 91. Kg2 {[%clk 0:00:02.3]}
91... Qd2+ {[%clk 0:00:07.4]} 92. Kg3 {[%clk 0:00:02.7]} 92... Qe1+ {[%clk
0:00:07.9]} 93. Kg2 {[%clk 0:00:03.1]} 93... h5 {[%clk 0:00:08.3]} 94. gxh5
{[%clk 0:00:02.8]} 94... Qe2+ {[%clk 0:00:08.9]} 95. Kg3 {[%clk 0:00:02.6]}
95... Qxh5 {[%clk 0:00:09.8]} 96. Qe5+ {[%clk 0:00:02.7]} 96... Kh6 {[%clk
0:00:09.8]} 97. Qh8+ {[%clk 0:00:02]} 97... Kg6 {[%clk 0:00:10.4]} 98. Qg8+
{[%clk 0:00:02.6]} 98... Kf6 {[%clk 0:00:10.4]} 99. Qd8+ {[%clk 0:00:03.2]}
99... Kg7 {[%clk 0:00:10.4]} 100. Qd4+ {[%clk 0:00:03]} 100... f6 {[%clk
0:00:10.6]} 101. Qd7+ {[%clk 0:00:03.4]} 101... Kg6 {[%clk 0:00:10.8]} 102. Qe8+
{[%clk 0:00:03.4]} 102... Kh6 {[%clk 0:00:11.3]} 103. Qh8+ {[%clk 0:00:03.7]}
103... Kg6 {[%clk 0:00:12]} 104. Qe8+ {[%clk 0:00:04.3]} 104... Kh6 {[%clk
0:00:12.6]} 105. Qh8+ {[%clk 0:00:04.9]} 105... Kg6 {[%clk 0:00:13.4]} 106. Qe8+
{[%clk 0:00:05.3]} 1/2-1/2

[Event "Late-Titled-Tuesday-Blitz-March-12-2024"]
[Site "Chess.com"]
[Date "2024.03.12"]
[Round "1"]
[White "biostatistician"]
[Black "sergiochess83"]
[Result "1/2-1/2"]
[WhiteElo "2522"]
[BlackElo "2888"]
[TimeControl "180+1"]
[EndTime "14:09:40 PDT"]
[Termination "Game drawn - insufficient material"]

1. d4 {[%clk 0:03:00.7]} 1... Nf6 {[%clk 0:02:56.8]} 2. Nf3 {[%clk 0:03:01.6]}
2... d5 {[%clk 0:02:56]} 3. c4 {[%clk 0:03:02]} 3... e6 {[%clk 0:02:56.5]} 4.
Nc3 {[%clk 0:03:01.8]} 4... c5 {[%clk 0:02:53.5]} 5. cxd5 {[%clk 0:03:00.3]}
5... Nxd5 {[%clk 0:02:53.3]} 6. e4 {[%clk 0:03:00.1]} 6... Nxc3 {[%clk
0:02:53.4]} 7. bxc3 {[%clk 0:03:01]} 7... cxd4 {[%clk 0:02:54.3]} 8. cxd4 {[%clk
0:03:01]} 8... Bb4+ {[%clk 0:02:55]} 9. Bd2 {[%clk 0:03:01.4]} 9... Bxd2+ {[%clk
0:02:54.8]} 10. Qxd2 {[%clk 0:03:02.3]} 10... O-O {[%clk 0:02:55.2]} 11. Bc4
{[%clk 0:03:02.3]} 11... Nd7 {[%clk 0:02:55.4]} 12. O-O {[%clk 0:03:02.2]} 12...
b6 {[%clk 0:02:56]} 13. Rfe1 {[%clk 0:02:59.6]} 13... Bb7 {[%clk 0:02:55.1]} 14.
Rad1 {[%clk 0:02:56.2]} 14... Rc8 {[%clk 0:02:55]} 15. Bd3 {[%clk 0:02:53.7]}
15... h6 {[%clk 0:02:46.2]} 16. Qf4 {[%clk 0:02:52.4]} 16... Qf6 {[%clk
0:02:36.2]} 17. Qe3 {[%clk 0:02:40.2]} 17... Qe7 {[%clk 0:02:25.1]} 18. Rc1
{[%clk 0:02:28.1]} 18... Nf6 {[%clk 0:02:19.8]} 19. Ne5 {[%clk 0:02:23.9]} 19...
Rfd8 {[%clk 0:02:15.1]} 20. f3 {[%clk 0:02:21]} 20... Qb4 {[%clk 0:01:59.2]} 21.
Rxc8 {[%clk 0:02:12]} 21... Rxc8 {[%clk 0:01:59.1]} 22. Bf1 {[%clk 0:02:01.4]}
22... Rc2 {[%clk 0:01:50.7]} 23. Nd3 {[%clk 0:02:00]} 23... Qa5 {[%clk
0:01:40.7]} 24. d5 {[%clk 0:01:48.6]} 24... exd5 {[%clk 0:01:07.8]} 25. e5
{[%clk 0:01:48.3]} 25... d4 {[%clk 0:01:08.4]} 26. Qxd4 {[%clk 0:01:43.4]} 26...
Nd5 {[%clk 0:01:08.6]} 27. a4 {[%clk 0:01:24.2]} 27... Qc3 {[%clk 0:01:02.7]}
28. Qg4 {[%clk 0:01:04.5]} 28... Bc8 {[%clk 0:00:47.9]} 29. e6 {[%clk
0:00:51.3]} 29... fxe6 {[%clk 0:00:37.1]} 30. Rxe6 {[%clk 0:00:51.3]} 30... Nf6
{[%clk 0:00:35.3]} 31. Qf5 {[%clk 0:00:34.7]} 31... Qd4+ {[%clk 0:00:35.3]} 32.
Kh1 {[%clk 0:00:33.1]} 32... Bxe6 {[%clk 0:00:33.6]} 33. Qxe6+ {[%clk 0:00:34]}
33... Kh8 {[%clk 0:00:32.7]} 34. h3 {[%clk 0:00:26.3]} 34... Qd7 {[%clk
0:00:27.1]} 35. Qe5 {[%clk 0:00:23.4]} 35... Rc8 {[%clk 0:00:25.1]} 36. Nf4
{[%clk 0:00:23.3]} 36... Rc1 {[%clk 0:00:14.3]} 37. Kg1 {[%clk 0:00:19.6]} 37...
Rd1 {[%clk 0:00:06.8]} 38. Ng6+ {[%clk 0:00:16.3]} 38... Kg8 {[%clk 0:00:07.3]}
39. Ne7+ {[%clk 0:00:12.1]} 39... Kf7 {[%clk 0:00:06.3]} 40. Nf5 {[%clk
0:00:12.6]} 40... Kg8 {[%clk 0:00:05]} 41. Ne7+ {[%clk 0:00:10.3]} 41... Kf7
{[%clk 0:00:05.5]} 42. Nf5 {[%clk 0:00:10.8]} 42... Kf8 {[%clk 0:00:05.2]} 43.
Kf2 {[%clk 0:00:09.1]} 43... Kg8 {[%clk 0:00:02.9]} 44. Bc4+ {[%clk 0:00:09.1]}
44... Kh7 {[%clk 0:00:02.2]} 45. Kg3 {[%clk 0:00:06.5]} 45... Rd2 {[%clk
0:00:03.1]} 46. Ne7 {[%clk 0:00:03.7]} 46... Nh5+ {[%clk 0:00:03.3]} 47. Kh4
{[%clk 0:00:03.7]} 47... Nf6 {[%clk 0:00:02.9]} 48. Bd3+ {[%clk 0:00:03.8]}
48... Rxd3 {[%clk 0:00:02.7]} 49. Nf5 {[%clk 0:00:03.4]} 49... Rd4+ {[%clk
0:00:03.6]} 50. Nxd4 {[%clk 0:00:03.1]} 50... Qd5 {[%clk 0:00:03.2]} 51. Qxd5
{[%clk 0:00:03.3]} 51... Nxd5 {[%clk 0:00:04.1]} 52. Nb5 {[%clk 0:00:04.2]}
52... a5 {[%clk 0:00:03.8]} 53. Nd6 {[%clk 0:00:04.2]} 53... Nc3 {[%clk
0:00:04]} 54. Nc4 {[%clk 0:00:03.9]} 54... Nxa4 {[%clk 0:00:04.2]} 55. f4 {[%clk
0:00:04.4]} 55... Nc3 {[%clk 0:00:04.3]} 56. Nxb6 {[%clk 0:00:04.4]} 56... a4
{[%clk 0:00:05.2]} 57. Nc4 {[%clk 0:00:04.6]} 57... a3 {[%clk 0:00:05.6]} 58.
Nxa3 {[%clk 0:00:04.8]} 58... Ne2 {[%clk 0:00:05.4]} 59. Kg4 {[%clk 0:00:03.9]}
59... g6 {[%clk 0:00:05.9]} 60. Kf3 {[%clk 0:00:04]} 60... Nd4+ {[%clk
0:00:06.1]} 61. Ke4 {[%clk 0:00:04.5]} 61... Ne6 {[%clk 0:00:06.5]} 62. g4
{[%clk 0:00:04.9]} 62... Kg7 {[%clk 0:00:06.9]} 63. Nc4 {[%clk 0:00:05.8]} 63...
Kf6 {[%clk 0:00:07.1]} 64. Ne5 {[%clk 0:00:05.9]} 64... g5 {[%clk 0:00:05.1]}
65. Nd3 {[%clk 0:00:06.1]} 65... gxf4 {[%clk 0:00:05.1]} 66. Nxf4 {[%clk
0:00:07]} 66... Ng5+ {[%clk 0:00:04.7]} 67. Ke3 {[%clk 0:00:06.5]} 67... Nf7
{[%clk 0:00:04.6]} 68. h4 {[%clk 0:00:06.9]} 68... Ne5 {[%clk 0:00:04.6]} 69.
Nh5+ {[%clk 0:00:05.1]} 69... Kg6 {[%clk 0:00:04.4]} 70. Kf4 {[%clk 0:00:06]}
70... Nd3+ {[%clk 0:00:04.4]} 71. Kg3 {[%clk 0:00:06.3]} 71... Ne5 {[%clk
0:00:04.6]} 72. Nf4+ {[%clk 0:00:06.6]} 72... Kf6 {[%clk 0:00:05.3]} 73. Nd5+
{[%clk 0:00:06.4]} 73... Ke6 {[%clk 0:00:05.5]} 74. Ne3 {[%clk 0:00:06.3]} 74...
Kf6 {[%clk 0:00:05.5]} 75. Kf4 {[%clk 0:00:05.2]} 75... Ng6+ {[%clk 0:00:05.9]}
76. Kg3 {[%clk 0:00:05.2]} 76... Ne5 {[%clk 0:00:06.8]} 77. Ng2 {[%clk
0:00:03.9]} 77... Nc4 {[%clk 0:00:05.7]} 78. Nf4 {[%clk 0:00:04.1]} 78... Ne3
{[%clk 0:00:06]} 79. Kf3 {[%clk 0:00:04.2]} 79... Nc4 {[%clk 0:00:05.8]} 80. Ke4
{[%clk 0:00:04.2]} 80... Nd2+ {[%clk 0:00:05.5]} 81. Ke3 {[%clk 0:00:03.7]}
81... Nc4+ {[%clk 0:00:04.9]} 82. Kf3 {[%clk 0:00:04.6]} 82... Nd2+ {[%clk
0:00:05.1]} 83. Kg3 {[%clk 0:00:05.5]} 83... Ne4+ {[%clk 0:00:05.1]} 84. Kh3
{[%clk 0:00:05.5]} 84... Nd2 {[%clk 0:00:04]} 85. Nd3 {[%clk 0:00:04.6]} 85...
Ne4 {[%clk 0:00:03.9]} 86. Kg2 {[%clk 0:00:04.6]} 86... Nd2 {[%clk 0:00:03.2]}
87. Kg3 {[%clk 0:00:04.8]} 87... Ne4+ {[%clk 0:00:03.4]} 88. Kf4 {[%clk
0:00:05.3]} 88... Nc3 {[%clk 0:00:04.3]} 89. Ne5 {[%clk 0:00:05.5]} 89... Nd5+
{[%clk 0:00:04.2]} 90. Ke4 {[%clk 0:00:05.9]} 90... Nc3+ {[%clk 0:00:04.6]} 91.
Kd4 {[%clk 0:00:06.3]} 91... Ne2+ {[%clk 0:00:05]} 92. Ke4 {[%clk 0:00:06.8]}
92... Nc3+ {[%clk 0:00:05.1]} 93. Kf4 {[%clk 0:00:06.9]} 93... Ne2+ {[%clk
0:00:05.2]} 94. Ke3 {[%clk 0:00:07.5]} 94... Kxe5 {[%clk 0:00:04.7]} 95. Kxe2
{[%clk 0:00:08]} 95... Kf4 {[%clk 0:00:05.3]} 96. g5 {[%clk 0:00:08.4]} 96...
hxg5 {[%clk 0:00:05.8]} 97. hxg5 {[%clk 0:00:09.3]} 97... Kxg5 {[%clk
0:00:06.1]} 1/2-1/2

[Event "Late-Titled-Tuesday-Blitz-March-12-2024"]
[Site "Chess.com"]
[Date "2024.03.12"]
[Round "2"]
[White "steepedgames"]
[Black "cristiano78"]
[Result "1-0"]
[WhiteElo "2535"]
[BlackElo "2287"]
[TimeControl "180+1"]
[EndTime "14:12:21 PDT"]
[Termination "steepedgames won by resignation"]

1. d4 {[%clk 0:02:57.4]} 1... Nf6 {[%clk 0:03:00]} 2. Bg5 {[%clk 0:02:57.9]}
2... c5 {[%clk 0:02:58.9]} 3. Bxf6 {[%clk 0:02:58]} 3... gxf6 {[%clk 0:02:58.1]}
4. d5 {[%clk 0:02:58.9]} 4... Qb6 {[%clk 0:02:56.1]} 5. Qc1 {[%clk 0:02:58.3]}
5... Bh6 {[%clk 0:02:56]} 6. e3 {[%clk 0:02:58]} 6... d6 {[%clk 0:02:56]} 7. Nd2
{[%clk 0:02:56.3]} 7... Bf5 {[%clk 0:02:53.7]} 8. Nc4 {[%clk 0:02:54.8]} 8...
Qc7 {[%clk 0:02:52.6]} 9. a4 {[%clk 0:02:54.2]} 9... Nd7 {[%clk 0:02:52.3]} 10.
Ne2 {[%clk 0:02:48.7]} 10... Ne5 {[%clk 0:02:52]} 11. Ng3 {[%clk 0:02:46.3]}
11... Bg6 {[%clk 0:02:51.8]} 12. h4 {[%clk 0:02:42.3]} 12... Nxc4 {[%clk
0:02:38.3]} 13. Bxc4 {[%clk 0:02:40.8]} 1-0

[Event "Late-Titled-Tuesday-Blitz-March-12-2024"]
[Site "Chess.com"]
[Date "2024.03.12"]
[Round "2"]
[White "Perecke"]
[Black "Zohid6"]
[Result "0-1"]
[WhiteElo "2601"]
[BlackElo "2882"]
[TimeControl "180+1"]
[EndTime "14:12:24 PDT"]
[Termination "Zohid6 won by resignation"]

1. e4 {[%clk 0:02:52.2]} 1... e5 {[%clk 0:02:59.8]} 2. Nf3 {[%clk 0:02:52.2]}
2... Nf6 {[%clk 0:03:00.1]} 3. Nxe5 {[%clk 0:02:49.1]} 3... d6 {[%clk 0:03:00]}
4. Nf3 {[%clk 0:02:49.7]} 4... Nxe4 {[%clk 0:03:00.2]} 5. Nc3 {[%clk 0:02:50.4]}
5... Nxc3 {[%clk 0:02:59.3]} 6. dxc3 {[%clk 0:02:51.3]} 6... Be7 {[%clk
0:02:59.5]} 7. Bf4 {[%clk 0:02:51.4]} 7... O-O {[%clk 0:02:58.9]} 8. Qd2 {[%clk
0:02:51.8]} 8... Nd7 {[%clk 0:02:59.3]} 9. O-O-O {[%clk 0:02:50.6]} 9... Nc5
{[%clk 0:02:59.8]} 10. h3 {[%clk 0:02:48.1]} 10... Re8 {[%clk 0:02:58.7]} 11. g4
{[%clk 0:02:48.4]} 11... Bf8 {[%clk 0:02:57.2]} 12. Bd3 {[%clk 0:02:47.5]} 12...
Qd7 {[%clk 0:02:55.5]} 13. Kb1 {[%clk 0:02:44.2]} 13... Qa4 {[%clk 0:02:53.9]}
14. b3 {[%clk 0:02:43.2]} 14... Qa3 {[%clk 0:02:48.5]} 15. Ng5 {[%clk
0:02:13.1]} 15... h6 {[%clk 0:02:18.7]} 16. Nf3 {[%clk 0:02:13.4]} 16... Be6
{[%clk 0:02:15.8]} 17. g5 {[%clk 0:02:11.8]} 17... Na4 {[%clk 0:02:15.6]} 0-1

[Event "Late-Titled-Tuesday-Blitz-March-12-2024"]
[Site "Chess.com"]
[Date "2024.03.12"]
[Round "2"]
[White "Boundless_Strike"]
[Black "semchik73"]
[Result "1-0"]
[WhiteElo "2606"]
[BlackElo "2409"]
[TimeControl "180+1"]
[EndTime "14:12:24 PDT"]
[Termination "Boundless_Strike won by resignation"]

1. d4 {[%clk 0:03:00.9]} 1... d5 {[%clk 0:03:00]} 2. e4 {[%clk 0:03:01]} 2...
dxe4 {[%clk 0:02:58.2]} 3. Nc3 {[%clk 0:03:01.6]} 3... Nf6 {[%clk 0:02:58.4]} 4.
f3 {[%clk 0:03:01.6]} 4... e5 {[%clk 0:02:55.2]} 5. dxe5 {[%clk 0:03:01.3]} 5...
Qxd1+ {[%clk 0:02:55]} 6. Kxd1 {[%clk 0:03:02.2]} 6... Nfd7 {[%clk 0:02:54.2]}
7. Nd5 {[%clk 0:03:02.3]} 7... Kd8 {[%clk 0:02:43.7]} 8. Bg5+ {[%clk 0:03:01]}
8... f6 {[%clk 0:02:44]} 9. exf6 {[%clk 0:03:00.8]} 9... gxf6 {[%clk 0:02:44.2]}
10. Nxf6 {[%clk 0:03:01.7]} 10... Be7 {[%clk 0:02:43.6]} 11. Nxe4 {[%clk
0:03:01.9]} 11... Bxg5 {[%clk 0:02:39.6]} 12. Nxg5 {[%clk 0:03:02.8]} 12... Ne5
{[%clk 0:02:35.2]} 13. Kd2 {[%clk 0:03:00.3]} 13... h6 {[%clk 0:02:35]} 14. Ne4
{[%clk 0:03:00.1]} 14... Nbc6 {[%clk 0:02:35.5]} 15. Re1 {[%clk 0:02:59.7]}
15... Bf5 {[%clk 0:02:32.5]} 16. Ng3 {[%clk 0:02:46.9]} 16... Bg6 {[%clk
0:02:32.1]} 17. N1e2 {[%clk 0:02:46.1]} 17... Ke7 {[%clk 0:02:22.3]} 18. Nf4
{[%clk 0:02:46]} 18... Rad8+ {[%clk 0:02:20.4]} 19. Kc1 {[%clk 0:02:45.9]} 19...
Bh7 {[%clk 0:02:20]} 20. Nd3 {[%clk 0:02:42.9]} 20... Kd6 {[%clk 0:02:16.6]} 21.
Nxe5 {[%clk 0:02:42.1]} 21... Nxe5 {[%clk 0:02:17.5]} 22. f4 {[%clk 0:02:40]}
22... Ng4 {[%clk 0:02:15.7]} 23. Be2 {[%clk 0:02:40.4]} 23... Ne3 {[%clk
0:02:13.5]} 24. Bf3 {[%clk 0:02:40.4]} 24... Nxc2 {[%clk 0:02:10.5]} 25. Ne4+
{[%clk 0:02:40.8]} 25... Bxe4 {[%clk 0:02:09.1]} 26. Rxe4 {[%clk 0:02:41.7]} 1-0

[Event "Late-Titled-Tuesday-Blitz-March-12-2024"]
[Site "Chess.com"]
[Date "2024.03.12"]
[Round "2"]
[White "Franmu14"]
[Black "HansOnTwitch"]
[Result "0-1"]
[WhiteElo "2709"]
[BlackElo "3108"]
[TimeControl "180+1"]
[EndTime "14:12:42 PDT"]
[Termination "HansOnTwitch won by resignation"]

1. e4 {[%clk 0:03:00.9]} 1... c6 {[%clk 0:02:28.4]} 2. c4 {[%clk 0:02:59.5]}
2... e5 {[%clk 0:02:22.8]} 3. Nf3 {[%clk 0:02:59.1]} 3... d6 {[%clk 0:02:21.1]}
4. Nc3 {[%clk 0:02:59.7]} 4... Bg4 {[%clk 0:02:20.5]} 5. h3 {[%clk 0:02:58.4]}
5... Bxf3 {[%clk 0:02:20.7]} 6. Qxf3 {[%clk 0:02:58.5]} 6... g6 {[%clk
0:02:16.4]} 7. g4 {[%clk 0:02:50]} 7... Nd7 {[%clk 0:02:13.7]} 8. b3 {[%clk
0:02:45.9]} 8... Nc5 {[%clk 0:02:12.8]} 9. h4 {[%clk 0:02:43.2]} 9... Be7 {[%clk
0:02:05.8]} 10. h5 {[%clk 0:02:41.3]} 10... Bg5 {[%clk 0:02:05.7]} 11. hxg6
{[%clk 0:02:37]} 11... fxg6 {[%clk 0:02:05.1]} 12. Bb2 {[%clk 0:02:34.7]} 12...
Nf6 {[%clk 0:02:03.5]} 13. O-O-O {[%clk 0:02:28.2]} 13... a5 {[%clk 0:02:01.1]}
14. Kb1 {[%clk 0:02:27.1]} 14... a4 {[%clk 0:02:00.3]} 15. d4 {[%clk 0:02:15.6]}
15... exd4 {[%clk 0:01:58.8]} 16. Rxd4 {[%clk 0:02:16.3]} 16... axb3 {[%clk
0:01:59.1]} 17. e5 {[%clk 0:02:14.3]} 17... bxa2+ {[%clk 0:01:57.4]} 18. Ka1
{[%clk 0:02:14.1]} 0-1

[Event "Late-Titled-Tuesday-Blitz-March-12-2024"]
[Site "Chess.com"]
[Date "2024.03.12"]
[Round "2"]
[White "Lennis93"]
[Black "carloseduar100"]
[Result "1-0"]
[WhiteElo "2689"]
[BlackElo "2308"]
[TimeControl "180+1"]
[EndTime "14:13:01 PDT"]
[Termination "Lennis93 won by resignation"]

1. a3 {[%clk 0:03:00.9]} 1... d5 {[%clk 0:02:41]} 2. Nf3 {[%clk 0:03:00.8]} 2...
c6 {[%clk 0:02:37.1]} 3. b4 {[%clk 0:02:59.8]} 3... Nf6 {[%clk 0:02:35.8]} 4. e3
{[%clk 0:02:59.4]} 4... Bg4 {[%clk 0:02:33.9]} 5. Bb2 {[%clk 0:02:58.3]} 5...
Nbd7 {[%clk 0:02:30.7]} 6. h3 {[%clk 0:02:58.2]} 6... Bh5 {[%clk 0:02:30.7]} 7.
g4 {[%clk 0:02:58.1]} 7... Bg6 {[%clk 0:02:30.1]} 8. Bg2 {[%clk 0:02:57.4]} 8...
Ne4 {[%clk 0:02:24.4]} 9. d3 {[%clk 0:02:57.4]} 9... Nd6 {[%clk 0:02:23]} 10.
Nh4 {[%clk 0:02:44.1]} 10... e5 {[%clk 0:02:20.9]} 11. Nxg6 {[%clk 0:02:44.2]}
11... hxg6 {[%clk 0:02:21.8]} 12. Nd2 {[%clk 0:02:44.2]} 12... Be7 {[%clk
0:02:19.5]} 13. c4 {[%clk 0:02:42.9]} 13... dxc4 {[%clk 0:02:06.8]} 14. dxc4
{[%clk 0:02:38.6]} 14... Bf6 {[%clk 0:02:06.2]} 15. c5 {[%clk 0:02:36]} 15...
Nb5 {[%clk 0:02:05.1]} 16. Ne4 {[%clk 0:02:33.7]} 16... O-O {[%clk 0:02:03.6]}
17. h4 {[%clk 0:02:25.6]} 17... Bxh4 {[%clk 0:01:54.7]} 18. Rxh4 {[%clk
0:02:04.4]} 18... Qxh4 {[%clk 0:01:54.1]} 19. Qxd7 {[%clk 0:02:04.9]} 19... Qxg4
{[%clk 0:01:48.9]} 20. Qxg4 {[%clk 0:02:03.9]} 1-0

[Event "Late-Titled-Tuesday-Blitz-March-12-2024"]
[Site "Chess.com"]
[Date "2024.03.12"]
[Round "2"]
[White "IMRosen"]
[Black "Schattman"]
[Result "1-0"]
[WhiteElo "2690"]
[BlackElo "2435"]
[TimeControl "180+1"]
[EndTime "14:13:08 PDT"]
[Termination "IMRosen won by resignation"]

1. e4 {[%clk 0:03:00.9]} 1... c5 {[%clk 0:03:00]} 2. Nc3 {[%clk 0:03:01.4]} 2...
d6 {[%clk 0:02:59.2]} 3. f4 {[%clk 0:03:01.4]} 3... g6 {[%clk 0:02:58.1]} 4. Nf3
{[%clk 0:03:01.7]} 4... Bg7 {[%clk 0:02:57.9]} 5. Bc4 {[%clk 0:03:02.3]} 5... e6
{[%clk 0:02:57.5]} 6. O-O {[%clk 0:02:57.5]} 6... Ne7 {[%clk 0:02:57.5]} 7. d4
{[%clk 0:02:57.6]} 7... cxd4 {[%clk 0:02:51.6]} 8. Nxd4 {[%clk 0:02:57.9]} 8...
a6 {[%clk 0:02:52.2]} 9. Bb3 {[%clk 0:02:57.7]} 9... Nbc6 {[%clk 0:02:46.4]} 10.
Be3 {[%clk 0:02:56.3]} 10... O-O {[%clk 0:02:44.3]} 11. Kh1 {[%clk 0:02:48.4]}
11... Nxd4 {[%clk 0:02:33.3]} 12. Bxd4 {[%clk 0:02:48.6]} 12... Bxd4 {[%clk
0:02:33.4]} 13. Qxd4 {[%clk 0:02:49.5]} 13... Nc6 {[%clk 0:02:33.5]} 14. Qf2
{[%clk 0:02:48.6]} 14... Na5 {[%clk 0:02:26.5]} 15. Rad1 {[%clk 0:02:41.3]}
15... Nxb3 {[%clk 0:02:24.3]} 16. axb3 {[%clk 0:02:42.2]} 16... Qe7 {[%clk
0:02:10.1]} 17. Qd4 {[%clk 0:02:33.4]} 17... Rd8 {[%clk 0:02:02.3]} 18. e5
{[%clk 0:02:33.8]} 18... d5 {[%clk 0:01:59.5]} 19. Ne4 {[%clk 0:02:34.2]} 19...
f5 {[%clk 0:01:47.4]} 20. exf6 {[%clk 0:02:16.7]} 20... Qc7 {[%clk 0:01:40.1]}
21. Ng5 {[%clk 0:02:13.4]} 21... e5 {[%clk 0:01:36.8]} 22. fxe5 {[%clk
0:02:09.6]} 1-0